fUSD/lending_fUSD_20241223
["ID","MTS","AMOUNT","RATE_DAILY","PERIOD"]
[346395379,1734939045654,-500.0,0.00019452,2]
[346395381,1734939045664,-500.0,0.00019452,2]
[346395383,1734939045673,-500.0,0.00019452,2]
[346395385,1734939045683,-500.0,0.00019452,2]
[346395387,1734939045692,-500.0,0.00019452,2]
[346395389,1734939045701,-500.0,0.00019452,2]
[346395391,1734939045711,-2000.0,0.00019452,2]
[346395393,1734939045720,-500.0,0.00019452,2]
[346395395,1734939045729,-200.0,0.00019452,2]
[346395397,1734939045739,-500.0,0.00019452,2]
[346395399,1734939045750,-500.0,0.00019452,2]
[346395401,1734939045760,-523.32,0.00019452,2]
[346395403,1734939045770,-595.31,0.00019452,2]
[346395405,1734939045780,-500.0,0.00019452,2]
[346395407,1734939045789,-500.0,0.00019452,2]
[346395409,1734939045802,-500.0,0.00019452,2]
[346395411,1734939045812,-500.0,0.00019452,2]
[346395413,1734939045822,-500.0,0.00019452,2]
[346395415,1734939045832,-590.09,0.00019452,2]
[346395417,1734939045843,-500.0,0.00019452,2]
[346395419,1734939045853,-500.0,0.00019452,2]
[346395421,1734939045862,-500.0,0.00019452,2]
[346395424,1734939045872,-500.0,0.00019452,2]
[346395426,1734939045882,-500.0,0.00019452,2]
[346395428,1734939045891,-500.0,0.00019452,2]
[346395430,1734939045900,-609.46327619,0.00019452,2]
[346395432,1734939045910,-500.0,0.00019452,2]
[346395434,1734939045920,-500.0,0.00019452,2]
[346395436,1734939045929,-500.0,0.00019452,2]
[346395439,1734939045939,-500.0,0.00019452,2]
[346395442,1734939045948,-500.0,0.00019452,2]
[346395445,1734939045958,-500.0,0.00019452,2]
[346395448,1734939045967,-500.0,0.00019452,2]
[346395450,1734939045976,-500.0,0.00019452,2]
[346395452,1734939045986,-500.0,0.00019452,2]
[346395454,1734939045995,-500.0,0.00019452,2]
[346395456,1734939046004,-500.0,0.00019452,2]
[346395458,1734939046013,-500.0,0.00019452,2]
[346395460,1734939046023,-597.39,0.00019452,2]
[346395462,1734939046032,-510.78,0.00019452,2]
[346395464,1734939046042,-160.57,0.00019452,2]
[346395466,1734939046052,-859.56,0.00019452,2]
[346395468,1734939046062,-500.0,0.00019452,2]
[346395470,1734939046071,-500.0,0.00019452,2]
[346395472,1734939046081,-857.71,0.00019452,2]
[346395474,1734939046091,-156.77,0.00019452,2]
[346395476,1734939046100,-541.04,0.00019452,2]
[346395478,1734939046110,-500.0,0.00019452,2]
[346395480,1734939046120,-500.0,0.00019452,2]
[346395482,1734939046130,-500.0,0.00019452,2]
[346395484,1734939046140,-500.0,0.00019452,2]
[346395486,1734939046150,-500.0,0.00019452,2]
[346395488,1734939046160,-500.0,0.00019452,2]
[346395490,1734939046169,-500.0,0.00019452,2]
[346395493,1734939046179,-500.0,0.00019452,2]
[346395495,1734939046189,-500.0,0.00019452,2]
[346395496,1734939046199,-503.17988542,0.00019452,2]
[346395498,1734939046208,-644.65,0.00019452,2]
[346395500,1734939046217,-500.0,0.00019452,2]
[346395502,1734939046227,-500.0,0.00019452,2]
[346395504,1734939046236,-500.0,0.00019452,2]
[346395506,1734939046246,-500.0,0.00019452,2]
[346395507,1734939046255,-619.22,0.00019452,2]
[346395508,1734939046265,-504.76,0.00019452,2]
[346395509,1734939046275,-626.42,0.00019452,2]
[346395510,1734939046285,-500.0,0.00019452,2]
[346395511,1734939046295,-692.13,0.00019452,2]
[346395512,1734939046305,-736.1,0.00019452,2]
[346395513,1734939046315,-500.0,0.00019452,2]
[346395514,1734939046324,-500.0,0.00019452,2]
[346395515,1734939046334,-500.0,0.00019452,2]
[346395516,1734939046343,-500.0,0.00019452,2]
[346395517,1734939046352,-500.0,0.00019452,2]
[346395518,1734939046361,-619.92,0.00019452,2]
[346395519,1734939046370,-500.0,0.00019452,2]
[346395520,1734939046379,-372.34,0.00019452,2]
[346395521,1734939046389,-500.0,0.00019452,2]
[346395522,1734939046398,-500.0,0.00019452,2]
[346395523,1734939046407,-500.0,0.00019452,2]
[346395524,1734939046416,-500.0,0.00019452,2]
[346395525,1734939046426,-500.0,0.00019452,2]
[346395526,1734939046435,-500.0,0.00019452,2]
[346395527,1734939046444,-574.95,0.00019452,2]
[346395528,1734939046454,-695.52,0.00019452,2]
[346395529,1734939046464,-500.0,0.00019452,2]
[346395530,1734939046473,-500.0,0.00019452,2]
[346395531,1734939046483,-500.0,0.00019452,2]
[346395532,1734939046492,-557.00830107,0.00019452,2]
[346395533,1734939046501,-500.0,0.00019452,2]
[346395534,1734939046511,-500.0,0.00019452,2]
[346395535,1734939046520,-636.17,0.00019452,2]
[346395536,1734939046529,-200.0,0.00019452,2]
[346395537,1734939046539,-500.0,0.00019452,2]
[346395538,1734939046549,-500.0,0.00019452,2]
[346395539,1734939046558,-500.0,0.00019452,2]
[346395540,1734939046568,-625.65763238,0.00019452,2]
[346395541,1734939046578,-643.31,0.00019452,2]
[346395542,1734939046587,-500.0,0.00019452,2]
[346395543,1734939046597,-615.0,0.00019452,2]
[346395545,1734939046606,-500.0,0.00019452,2]
[346395546,1734939046616,-335.57298621,0.00019452,2]
[346395547,1734939046626,-204.51,0.00019452,2]
[346395548,1734939046634,-500.0,0.00019452,2]
[346395549,1734939046644,-500.0,0.00019452,2]
[346395550,1734939046654,-656.64,0.00019452,2]
[346395551,1734939046663,-500.0,0.00019452,2]
[346395552,1734939046673,-500.0,0.00019452,2]
[346395553,1734939046683,-500.0,0.00019452,2]
[346395554,1734939046692,-500.0,0.00019452,2]
[346395555,1734939046702,-551.38,0.00019452,2]
[346395556,1734939046712,-500.0,0.00019452,2]
[346395557,1734939046721,-913.45,0.00019452,2]
[346395558,1734939046731,-500.0,0.00019452,2]
[346395559,1734939046741,-500.0,0.00019452,2]
[346395560,1734939046755,-627.89,0.00019452,2]
[346395561,1734939046767,-866.49,0.00019452,2]
[346395562,1734939046776,-877.21,0.00019452,2]
[346395563,1734939046786,-500.0,0.00019452,2]
[346395564,1734939046798,-500.0,0.00019452,2]
[346395565,1734939046808,-500.0,0.00019452,2]
[346395566,1734939046818,-500.0,0.00019452,2]
[346395567,1734939046828,-741.44,0.00019452,2]
[346395568,1734939046838,-500.0,0.00019452,2]
[346395569,1734939046847,-500.0,0.00019452,2]
[346395570,1734939046856,-502.89,0.00019452,2]
[346395571,1734939046866,-728.49,0.00019452,2]
[346395572,1734939046876,-1438.82,0.00019452,2]
[346395573,1734939046886,-500.0,0.00019452,2]
[346395574,1734939046895,-556.92,0.00019452,2]
[346395575,1734939046904,-500.0,0.00019452,2]
[346395576,1734939046914,-500.0,0.00019452,2]
[346395577,1734939046924,-1052.68,0.00019452,2]
[346395578,1734939046934,-7125.37,0.00019452,2]
[346395579,1734939046943,-500.0,0.00019452,2]
[346395580,1734939046952,-1029.91,0.00019452,2]
[346395581,1734939046962,-500.0,0.00019452,2]
[346395582,1734939046972,-500.0,0.00019452,2]
[346395583,1734939046981,-198.309265,0.00019452,2]
[346395584,1734939046991,-815.19,0.00019452,2]
[346395585,1734939047000,-1084.05,0.00019452,2]
[346395586,1734939047010,-784.81,0.00019452,2]
[346395587,1734939047021,-500.0,0.00019452,2]
[346395588,1734939047030,-977.95,0.00019452,2]
[346395589,1734939047040,-658.26,0.00019452,2]
[346395590,1734939047051,-151.0,0.00019452,2]
[346395591,1734939047060,-880.7,0.00019452,2]
[346395592,1734939047070,-720.99,0.00019452,2]
[346395593,1734939047080,-1664.87,0.00019452,2]
[346395594,1734939047090,-500.0,0.00019452,2]
[346395595,1734939047099,-830.81,0.00019452,2]
[346395596,1734939047109,-500.0,0.00019452,2]
[346395597,1734939047118,-500.0,0.00019452,2]
[346395598,1734939047127,-3000.0,0.00019452,2]
[346395599,1734939047137,-1193.69,0.00019452,2]
[346395600,1734939047146,-1622.08,0.00019452,2]
[346395601,1734939047156,-1328.72,0.00019452,2]
[346395602,1734939047165,-674.35,0.00019452,2]
[346395603,1734939047174,-2901.46,0.00019452,2]
[346395604,1734939047184,-500.0,0.00019452,2]
[346395605,1734939047193,-500.0,0.00019452,2]
[346395606,1734939047202,-151.0,0.00019452,2]
[346395607,1734939047212,-740.32,0.00019452,2]
[346395608,1734939047221,-1133.42,0.00019452,2]
[346395609,1734939047230,-1707.1,0.00019452,2]
[346395610,1734939047288,-833.41,0.00019452,2]
[346395611,1734939047298,-990.59,0.00019452,2]
[346395612,1734939047308,-513.4105581,0.00019452,2]
[346395613,1734939047317,-151.0,0.00019452,2]
[346395614,1734939047326,-654.35,0.00019452,2]
[346395615,1734939047335,-500.0,0.00019452,2]
[346395616,1734939047344,-2310.83,0.00019452,2]
[346395617,1734939047354,-1371.44,0.00019452,2]
[346395618,1734939047363,-500.0,0.00019452,2]
[346395619,1734939047372,-1827.98,0.00019452,2]
[346395620,1734939047381,-500.0,0.00019452,2]
[346395621,1734939047391,-2022.37,0.00019452,2]
[346395622,1734939047400,-500.0,0.00019452,2]
[346395623,1734939047409,-518.76992072,0.00019452,2]
[346395624,1734939047418,-676.94,0.00019452,2]
[346395625,1734939047427,-8328.5,0.00019452,2]
[346395626,1734939047437,-1480.58,0.00019452,2]
[346395627,1734939047445,-500.0,0.00019452,2]
[346395628,1734939047454,-1360.44,0.00019452,2]
[346395629,1734939047463,-500.0,0.00019452,2]
[346395630,1734939047472,-152.321553,0.00019452,2]
[346395631,1734939047481,-1343.03,0.00019452,2]
[346395632,1734939047490,-500.0,0.00019452,2]
[346395633,1734939047499,-688.61,0.00019452,2]
[346395634,1734939047508,-2425.76,0.00019452,2]
[346395635,1734939047517,-2514.32,0.00019452,2]
[346395636,1734939047526,-547.39164841,0.00019452,2]
[346395637,1734939047536,-11807.11,0.00019452,2]
[346395638,1734939047544,-500.0,0.00019452,2]
[346395639,1734939047553,-624.24,0.00019452,2]
[346395640,1734939047562,-500.0,0.00019452,2]
[346395641,1734939047571,-500.0,0.00019452,2]
[346395642,1734939047581,-3872.77,0.00019452,2]
[346395643,1734939047590,-151.0,0.00019452,2]
[346395644,1734939047600,-151.0,0.00019452,2]
[346395645,1734939047609,-151.0,0.00019452,2]
[346395646,1734939047618,-211.548307,0.00019452,2]
[346395647,1734939047627,-151.0,0.00019452,2]
[346395648,1734939047636,-500.0,0.00019452,2]
[346395649,1734939047646,-24409.79,0.00019452,2]
[346395650,1734939047655,-912.22,0.00019452,2]
[346395651,1734939047664,-3264.49,0.00019452,2]
[346395652,1734939047673,-500.0,0.00019452,2]
[346395653,1734939047682,-1105.36,0.00019452,2]
[346395654,1734939047692,-513.86,0.00019452,2]
[346395655,1734939047701,-933.96,0.00019452,2]
[346395656,1734939047711,-1645.06,0.00019452,2]
[346395657,1734939047721,-500.0,0.00019452,2]
[346395658,1734939047731,-500.0,0.00019452,2]
[346395659,1734939047740,-1751.99,0.00019452,2]
[346395660,1734939047751,-1406.34,0.00019452,2]
[346395661,1734939047761,-500.0,0.00019452,2]
[346395662,1734939047770,-2050.95,0.00019452,2]
[346395663,1734939047779,-656.01,0.00019452,2]
[346395664,1734939047788,-1038.39,0.00019452,2]
[346395665,1734939047799,-500.0,0.00019452,2]
[346395666,1734939047808,-559.33,0.00019452,2]
[346395667,1734939047817,-2186.66,0.00019452,2]
[346395668,1734939047828,-500.0,0.00019452,2]
[346395669,1734939047838,-1101.81,0.00019452,2]
[346395670,1734939047847,-500.0,0.00019452,2]
[346395671,1734939047856,-1353.07,0.00019452,2]
[346395672,1734939047865,-500.0,0.00019452,2]
[346395673,1734939047875,-1965.58,0.00019452,2]
[346395674,1734939047884,-500.0,0.00019452,2]
[346395675,1734939047893,-500.0,0.00019452,2]
[346395676,1734939047903,-500.0,0.00019452,2]
[346395677,1734939047912,-151.0,0.00019452,2]
[346395678,1734939047922,-1020.65,0.00019452,2]
[346395679,1734939047931,-500.0,0.00019452,2]
[346395680,1734939047940,-6793.18,0.00019452,2]
[346395681,1734939047949,-151.0,0.00019452,2]
[346395682,1734939047959,-500.0,0.00019452,2]
[346395683,1734939047968,-500.0,0.00019452,2]
[346395684,1734939047977,-500.0,0.00019452,2]
[346395685,1734939047987,-1047.66,0.00019452,2]
[346395686,1734939047996,-150.292812,0.00019452,2]
[346395687,1734939048005,-1134.23,0.00019452,2]
[346395688,1734939048014,-500.0,0.00019452,2]
[346395689,1734939048024,-164.343216,0.00019452,2]
[346395690,1734939048033,-500.0,0.00019452,2]
[346395691,1734939048042,-1053.82,0.00019452,2]
[346395692,1734939048052,-1080.84,0.00019452,2]
[346395693,1734939048062,-500.0,0.00019452,2]
[346395694,1734939048071,-1299.88,0.00019452,2]
[346395695,1734939048080,-206.85665306,0.00019452,2]
[346395696,1734939048090,-164.343216,0.00019452,2]
[346395697,1734939048099,-2554.68,0.00019452,2]
[346395698,1734939048108,-956.6,0.00019452,2]
[346395699,1734939048118,-500.0,0.00019452,2]
[346395700,1734939048127,-500.0,0.00019452,2]
[346395701,1734939048136,-3160.78,0.00019452,2]
[346395702,1734939048145,-4912.17,0.00019452,2]
[346395703,1734939048154,-500.0,0.00019452,2]
[346395704,1734939048163,-3061.96,0.00019452,2]
[346395705,1734939048172,-500.0,0.00019452,2]
[346395706,1734939048181,-1896.09,0.00019452,2]
[346395707,1734939048191,-812.76,0.00019452,2]
[346395708,1734939048201,-9129.34,0.00019452,2]
[346395709,1734939048211,-1076.96,0.00019452,2]
[346395710,1734939048220,-2099.59,0.00019452,2]
[346395711,1734939048229,-500.0,0.00019452,2]
[346395712,1734939048239,-6687.44,0.00019452,2]
[346395713,1734939048248,-598.2,0.00019452,2]
[346395714,1734939048258,-2946.48,0.00019452,2]
[346395715,1734939048267,-835.09,0.00019452,2]
[346395716,1734939048277,-510.24736023,0.00019452,2]
[346395717,1734939048287,-1412.78,0.00019452,2]
[346395718,1734939048297,-151.0,0.00019452,2]
[346395719,1734939048307,-387.20080232,0.00019452,2]
[346395720,1734939048317,-1663.59,0.00019452,2]
[346395721,1734939048327,-500.0,0.00019452,2]
[346395722,1734939048338,-500.0,0.00019452,2]
[346395723,1734939048347,-500.0,0.00019452,2]
[346395724,1734939048356,-500.0,0.00019452,2]
[346395725,1734939048366,-500.0,0.00019452,2]
[346395726,1734939048375,-4359.49,0.00019452,2]
[346395727,1734939048384,-500.0,0.00019452,2]
[346395728,1734939048393,-17872.73,0.00019452,2]
[346395729,1734939048403,-1937.03,0.00019452,2]
[346395730,1734939048412,-500.0,0.00019452,2]
[346395731,1734939048421,-500.0,0.00019452,2]
[346395732,1734939048431,-3327.65,0.00019452,2]
[346395733,1734939048440,-2624.25,0.00019452,2]
[346395734,1734939048450,-4460.7,0.00019452,2]
[346395735,1734939048458,-349.46674089,0.00019452,2]
[346395736,1734939048467,-500.0,0.00019452,2]
[346395737,1734939048477,-516.33,0.00019452,2]
[346395738,1734939048486,-686.77,0.00019452,2]
[346395739,1734939048496,-500.0,0.00019452,2]
[346395740,1734939048506,-500.0,0.00019452,2]
[346395741,1734939048515,-500.0,0.00019452,2]
[346395742,1734939048524,-1269.73,0.00019452,2]
[346395743,1734939048533,-2083.08,0.00019452,2]
[346395744,1734939048543,-228.325575,0.00019452,2]
[346395745,1734939048554,-500.0,0.00019452,2]
[346395746,1734939048563,-1807.71,0.00019452,2]
[346395747,1734939048572,-500.0,0.00019452,2]
[346395748,1734939048582,-500.0,0.00019452,2]
[346395749,1734939048591,-507.81691418,0.00019452,2]
[346395750,1734939048602,-788.4,0.00019452,2]
[346395751,1734939048611,-4481.48,0.00019452,2]
[346395752,1734939048621,-2273.09,0.00019452,2]
[346395753,1734939048630,-219.935759,0.00019452,2]
[346395754,1734939048640,-593.1293376,0.00019452,2]
[346395755,1734939048649,-1094.98,0.00019452,2]
[346395756,1734939048659,-1695.99,0.00019452,2]
[346395757,1734939048668,-500.0,0.00019452,2]
[346395758,1734939048678,-513.29630043,0.00019452,2]
[346395759,1734939048688,-2031.22,0.00019452,2]
[346395760,1734939048698,-2934.28,0.00019452,2]
[346395761,1734939048708,-871.22,0.00019452,2]
[346395762,1734939048718,-504.03857432,0.00019452,2]
[346395763,1734939048731,-2057.22,0.00019452,2]
[346395764,1734939048741,-771.28,0.00019452,2]
[346395765,1734939048752,-500.0,0.00019452,2]
[346395766,1734939048763,-3880.21,0.00019452,2]
[346395767,1734939048773,-500.0,0.00019452,2]
[346395768,1734939048782,-200.0,0.00019452,2]
[346395769,1734939048794,-500.0,0.00019452,2]
[346395770,1734939048806,-500.0,0.00019452,2]
[346395771,1734939048816,-500.0,0.00019452,2]
[346395772,1734939048826,-405.618264,0.00019452,2]
[346395773,1734939048836,-500.0,0.00019452,2]
[346395774,1734939048845,-500.0,0.00019452,2]
[346395775,1734939048854,-1311.77,0.00019452,2]
[346395776,1734939048864,-3934.56,0.00019452,2]
[346395777,1734939048873,-8498.87,0.00019452,2]
[346395778,1734939048883,-500.0,0.00019452,2]
[346395779,1734939048892,-8954.16,0.00019452,2]
[346395780,1734939048902,-500.0,0.00019452,2]
[346395781,1734939048912,-500.0,0.00019452,2]
[346395782,1734939048921,-315.85225,0.00019452,2]
[346395783,1734939048931,-500.0,0.00019452,2]
[346395784,1734939048940,-746.62,0.00019452,2]
[346395785,1734939048950,-500.0,0.00019452,2]
[346395786,1734939048960,-500.0,0.00019452,2]
[346395787,1734939048970,-4489.86,0.00019452,2]
[346395788,1734939048979,-500.0,0.00019452,2]
[346395789,1734939048989,-1021.27,0.00019452,2]
[346395790,1734939048999,-500.0,0.00019452,2]
[346395791,1734939049009,-500.0,0.00019452,2]
[346395792,1734939049019,-505.65423985,0.00019452,2]
[346395793,1734939049029,-1726.33,0.00019452,2]
[346395794,1734939049039,-711.05,0.00019452,2]
[346395795,1734939049049,-500.0,0.00019452,2]
[346395796,1734939049058,-500.0,0.00019452,2]
[346395797,1734939049068,-670.851473,0.00019452,2]
[346395798,1734939049078,-500.0,0.00019452,2]
[346395799,1734939049088,-500.0,0.00019452,2]
[346395800,1734939049099,-1931.21,0.00019452,2]
[346395801,1734939049109,-500.0,0.00019452,2]
[346395802,1734939049119,-3146.81,0.00019452,2]
[346395803,1734939049129,-500.0,0.00019452,2]
[346395804,1734939049139,-500.0,0.00019452,2]
[346395805,1734939049148,-641.0721839,0.00019452,2]
[346395806,1734939049158,-500.0,0.00019452,2]
[346395807,1734939049167,-500.0,0.00019452,2]
[346395808,1734939049177,-724.37329326,0.00019453,2]
[346395809,1734939049187,-724.37329326,0.00019453,2]
[346395810,1734939049196,-200.0,0.00019454,2]
[346395811,1734939049206,-7176.65683612,0.00019454,2]
[346395812,1734939049216,-264.0018328,0.00019455,2]
[346395813,1734939049226,-934.27989966,0.00019456,2]
[346395814,1734939049236,-3091.67575763,0.00019456,2]
[346395815,1734939049245,-15625.04545485,0.00019456,2]
[346395816,1734939049255,-17256.91802818,0.00019456,2]
[346395817,1734939049265,-17256.91802818,0.00019458,2]
[346395818,1734939049275,-200.0,0.00019458,2]
[346395819,1734939049285,-12644.13828154,0.00019458,2]
[346395820,1734939049294,-3091.67575763,0.00019459,2]
[346395821,1734939049305,-12644.13828154,0.0001946,2]
[346395822,1734939049316,-241.93834974,0.00019461,2]
[346395823,1734939049325,-3091.67575763,0.00019462,2]
[346395824,1734939049335,-7176.65683612,0.00019462,2]
[346395825,1734939049345,-3091.67575763,0.00019462,2]
[346395826,1734939049355,-2528.8276563,0.00019464,2]
[346395827,1734939049365,-724.37329326,0.00019464,2]
[346395828,1734939049374,-12644.13828154,0.00019466,2]
[346395829,1734939049384,-17256.91802818,0.00019466,2]
[346395830,1734939049393,-15625.04545485,0.00019466,2]
[346395831,1734939049403,-241.93834974,0.00019466,2]
[346395832,1734939049413,-2528.8276563,0.00019466,2]
[346395833,1734939049423,-200.0,0.00019466,2]
[346395834,1734939049434,-64246.24387626,0.00019469,2]
[346395835,1734939049443,-264.0018328,0.00019469,2]
[346395836,1734939049454,-64246.24387626,0.0001947,2]
[346395837,1734939049463,-7176.65683612,0.0001947,2]
[346395838,1734939049473,-200.0,0.00019472,2]
[346395839,1734939049483,-15625.04545485,0.00019472,2]
[346395840,1734939049494,-264.0018328,0.00019473,2]
[346395841,1734939049504,-724.37329326,0.00019473,2]
[346395842,1734939049514,-241.93834974,0.00019476,2]
[346395843,1734939049524,-64246.24387626,0.00019476,2]
[346395844,1734939049533,-12644.13828154,0.00019477,2]
[346395845,1734939049543,-264.0018328,0.00019477,2]
[346395846,1734939049554,-15625.04545485,0.00019478,2]
[346395847,1734939049564,-7176.65683612,0.00019479,2]
[346395848,1734939049573,-241.93834974,0.00019479,2]
[346395849,1734939049583,-724.37329326,0.00019481,2]
[346395850,1734939049593,-3091.67575763,0.00019481,2]
[346395851,1734939049603,-2528.8276563,0.00019484,2]
[346395852,1734939049613,-2528.8276563,0.00019485,2]
[346395853,1734939049623,-3091.67575763,0.00019486,2]
[346395854,1734939049634,-2528.8276563,0.00019486,2]
[346395855,1734939049644,-241.93834974,0.00019487,2]
[346395856,1734939049654,-17256.91802818,0.00019491,2]
[346395857,1734939049664,-64246.24387626,0.00019492,2]
[346395858,1734939049674,-64246.24387626,0.00019493,2]
[346395859,1734939049685,-200.0,0.00019493,2]
[346395860,1734939049694,-17256.91802818,0.00019494,2]
[346395861,1734939049705,-724.37329326,0.00019494,2]
[346395862,1734939049715,-241.93834974,0.00019495,2]
[346395863,1734939049724,-7176.65683612,0.00019495,2]
[346395864,1734939049736,-12644.13828154,0.00019495,2]
[346395865,1734939049746,-12644.13828154,0.00019495,2]
[346395866,1734939049760,-64246.24387626,0.00019497,2]
[346395867,1734939049770,-164.25579756,0.00019498,2]
[346395868,1734939049780,-164.25579756,0.00019498,2]
[346395869,1734939049790,-164.25,0.00019498,2]
[346395870,1734939049803,-2528.8276563,0.000195,2]
[346395871,1734939049813,-25912.29557901,0.000195,2]
[346395872,1734939049823,-1001.59245971,0.00019521,2]
[346395873,1734939049833,-1000.0,0.00019521,2]
[346395874,1734939049842,-313.71676825,0.00019521,2]
[346395875,1734939049851,-16239.8917842,0.00019566,2]
[346395876,1734939049860,-1080.62301612,0.00019566,2]
[346395877,1734939049870,-934.27989966,0.00019567,2]
[346395878,1734939049879,-306.162302,0.00019597,2]
[346395879,1734939049888,-666.0,0.00019597,2]
[346395880,1734939049897,-1164.35285782,0.00019597,5]
[346395881,1734939049907,-666.0,0.00019598,2]
[346395882,1734939049917,-500.0,0.00019599,2]
[346395883,1734939049926,-500.0,0.00019599,2]
[346395884,1734939049935,-626.53,0.00019599,2]
[346395885,1734939049945,-500.0,0.00019599,2]
[346395886,1734939049954,-52739.60756904,0.00019599,2]
[346395887,1734939049963,-500.0,0.00019599,2]
[346395888,1734939049973,-500.0,0.00019599,2]
[346395889,1734939049983,-3488.5,0.00019599,2]
[346395890,1734939049992,-329380.40569532,0.000196,2]
[346395891,1734939050002,-151.0,0.000196,2]
[346395892,1734939050012,-151.0,0.000196,2]
[346395893,1734939050021,-151.0,0.000196,2]
[346395894,1734939050031,-371.858557,0.000196,2]
[346395895,1734939050041,-371.858557,0.000196,2]
[346395896,1734939050054,-151.0,0.000196,2]
[346395897,1734939050064,-151.0,0.000196,2]
[346395898,1734939050074,-153.101758,0.000196,2]
[346395899,1734939050085,-151.0,0.000196,2]
[346395900,1734939050095,-151.0,0.000196,2]
[346395901,1734939050104,-151.0,0.000196,2]
[346395902,1734939050114,-151.0,0.000196,2]
[346395903,1734939050123,-151.0,0.000196,2]
[346395904,1734939050133,-151.0,0.000196,2]
[346395905,1734939050143,-151.0,0.000196,2]
[346395906,1734939050153,-152.187258,0.000196,2]
[346395907,1734939050163,-151.0,0.000196,2]
[346395908,1734939050172,-151.0,0.000196,2]
[346395909,1734939050182,-151.0,0.000196,2]
[346395910,1734939050192,-151.0,0.000196,2]
[346395911,1734939050201,-1502.21145756,0.000196,2]
[346395912,1734939050212,-151.0,0.000196,2]
[346395913,1734939050222,-298.147095,0.000196,2]
[346395914,1734939050231,-164.343216,0.000196,2]
[346395915,1734939050241,-164.343216,0.000196,2]
[346395916,1734939050250,-152.813578,0.000196,2]
[346395917,1734939050260,-151.0,0.000196,2]
[346395918,1734939050270,-151.0,0.000196,2]
[346395919,1734939050280,-151.0,0.000196,2]
[346395920,1734939050290,-151.0,0.000196,2]
[346395921,1734939050302,-151.0,0.000196,2]
[346395922,1734939050313,-151.0,0.000196,2]
[346395923,1734939050322,-5719.000515,0.000196,2]
[346395924,1734939050332,-5719.000515,0.000196,2]
[346395925,1734939050342,-151.0,0.000196,2]
[346395926,1734939050352,-151.0,0.000196,2]
[346395927,1734939050362,-151.0,0.000196,2]
[346395928,1734939050372,-151.0,0.000196,2]
[346395929,1734939050381,-151.0,0.000196,2]
[346395930,1734939050391,-180.8356751,0.00019626,2]
[346395931,1734939050401,-2000.0,0.00019647,2]
[346395932,1734939050411,-200.0,0.00019647,2]
[346395933,1734939050421,-2000.0,0.00019647,2]
[346395934,1734939050430,-200.0,0.00019647,2]
[346395935,1734939050440,-200.0,0.00019647,2]
[346395936,1734939050450,-200.0,0.00019647,2]
[346395937,1734939050459,-934.27989966,0.00019678,2]
[346395938,1734939050469,-202.36,0.00019678,2]
[346395939,1734939050479,-1000.0,0.000197,2]
[346395940,1734939050488,-1433.0,0.00019717,2]
[346395941,1734939050498,-150.0,0.00019723,2]
[346395942,1734939050507,-150.0,0.00019723,2]
[346395943,1734939050517,-500.0,0.00019725,2]
[346395944,1734939050527,-500.0,0.00019725,2]
[346395945,1734939050536,-500.0,0.00019725,2]